fUSD/lending_fUSD_20241110
["ID","MTS","AMOUNT","RATE_DAILY","PERIOD"]
[341873804,1731261153217,-500.0,0.00013698,2]
[341873805,1731261153227,-500.0,0.00013698,2]
[341873806,1731261153239,-3535.16,0.00013698,2]
[341873807,1731261153248,-14226.2,0.00013698,2]
[341873808,1731261153258,-2754.79,0.00013698,2]
[341873809,1731261153267,-5200.03,0.00013698,2]
[341873810,1731261153277,-500.0,0.00013698,2]
[341873811,1731261153289,-3535.16,0.00013698,2]
[341873812,1731261153299,-14226.2,0.00013698,2]
[341873813,1731261153309,-500.0,0.00013698,2]
[341873814,1731261153319,-2754.79,0.00013698,2]
[341873815,1731261153329,-5200.03,0.00013698,2]
[341873816,1731261153339,-3535.16,0.00013698,2]
[341873817,1731261153348,-500.0,0.00013698,2]
[341873818,1731261153358,-2754.79,0.00013698,2]
[341873819,1731261153369,-5200.03,0.00013698,2]
[341873820,1731261153378,-14226.2,0.00013698,2]
[341873821,1731261153387,-3535.16,0.00013698,2]
[341873822,1731261153396,-500.0,0.00013698,2]
[341873823,1731261153406,-2754.79,0.00013698,2]
[341873824,1731261153415,-5200.03,0.00013698,2]
[341873825,1731261153424,-14226.32159954,0.00013698,2]
[341873826,1731261153434,-500.0,0.00013698,2]
[341873827,1731261153443,-3535.16,0.00013698,2]
[341873828,1731261153453,-2754.79,0.00013698,2]
[341873829,1731261153463,-5200.03,0.00013698,2]
[341873830,1731261153472,-3535.16,0.00013698,2]
[341873831,1731261153482,-2754.79,0.00013698,2]
[341873832,1731261153491,-5200.03,0.00013698,2]
[341873833,1731261153500,-500.0,0.00013698,2]
[341873834,1731261153509,-3535.16,0.00013698,2]
[341873835,1731261153519,-5200.03,0.00013698,2]
[341873836,1731261153528,-500.0,0.00013698,2]
[341873837,1731261153537,-3535.16,0.00013698,2]
[341873838,1731261153547,-5200.03,0.00013698,2]
[341873839,1731261153556,-500.0,0.00013698,2]
[341873840,1731261153565,-2754.79,0.00013698,2]
[341873841,1731261153575,-500.0,0.00013698,2]
[341873842,1731261153584,-3535.16,0.00013698,2]
[341873843,1731261153594,-5200.03,0.00013698,2]
[341873844,1731261153603,-3535.16,0.00013698,2]
[341873845,1731261153613,-500.0,0.00013698,2]
[341873846,1731261153625,-5200.20706985,0.00013698,2]
[341873847,1731261153635,-2754.79,0.00013698,2]
[341873848,1731261153644,-3535.16,0.00013698,2]
[341873849,1731261153654,-500.0,0.00013698,2]
[341873850,1731261153664,-2754.79,0.00013698,2]
[341873851,1731261153674,-3535.16,0.00013698,2]
[341873852,1731261153683,-500.0,0.00013698,2]
[341873853,1731261153693,-2754.79,0.00013698,2]
[341873854,1731261153702,-3535.16,0.00013698,2]
[341873855,1731261153712,-500.0,0.00013698,2]
[341873856,1731261153722,-2754.81514362,0.00013698,2]
[341873857,1731261153732,-500.0,0.00013698,2]
[341873858,1731261153741,-500.0,0.00013698,2]
[341873859,1731261153751,-3535.16,0.00013698,2]
[341873860,1731261153761,-500.0,0.00013698,2]
[341873861,1731261153770,-3535.16,0.00013698,2]
[341873862,1731261153779,-500.0,0.00013698,2]
[341873863,1731261153788,-3535.16,0.00013698,2]
[341873864,1731261153796,-500.0,0.00013698,2]
[341873865,1731261153806,-3535.16,0.00013698,2]
[341873866,1731261153815,-3535.16,0.00013698,2]
[341873867,1731261153825,-500.0,0.00013698,2]
[341873868,1731261153835,-3535.16,0.00013698,2]
[341873869,1731261153844,-485.28884787,0.00013698,2]
[341873870,1731261153854,-3535.16,0.00013698,2]
[341873871,1731261153864,-3535.16,0.00013698,2]
[341873872,1731261153876,-3535.2545619,0.00013698,2]
[341873873,1731261153886,-530.41,0.00013698,2]
[341873874,1731261153895,-170.82128956,0.00013698,2]
[341873875,1731261153905,-8005.97,0.00013698,2]
[341873876,1731261153915,-8005.97,0.00013698,2]
[341873877,1731261153924,-8005.97,0.00013698,2]
[341873878,1731261153934,-8005.97,0.00013698,2]
[341873879,1731261153943,-8005.97,0.00013698,2]
[341873880,1731261153952,-8005.97,0.00013698,2]
[341873881,1731261153962,-8005.97,0.00013698,2]
[341873882,1731261153971,-20164.74088586,0.00013698,2]
[341873883,1731261153980,-1011.0,0.00013699,2]
[341873884,1731261153990,-151.0,0.00013699,2]
[341873885,1731261153999,-151.0,0.00013699,2]
[341873886,1731261154008,-151.0,0.00013699,2]
[341873887,1731261154017,-151.0,0.00013699,2]
[341873888,1731261154027,-151.0,0.00013699,2]
[341873889,1731261154036,-151.0,0.00013699,2]
[341873890,1731261154046,-151.0,0.00013699,2]
[341873891,1731261154055,-151.0,0.00013699,2]
[341873892,1731261154064,-151.0,0.00013699,2]
[341873893,1731261154073,-151.0,0.00013699,2]
[341873894,1731261154082,-151.0,0.00013699,2]
[341873895,1731261154092,-151.0,0.00013699,2]
[341873896,1731261154100,-151.0,0.00013699,2]
[341873897,1731261154110,-151.0,0.00013699,2]
[341873898,1731261154122,-151.0,0.00013699,2]
[341873899,1731261154131,-296.479011,0.00013699,2]
[341873900,1731261154140,-44629.0,0.00013699,2]
[341873901,1731261154149,-55996.0,0.00013699,2]
[341873902,1731261154158,-151.0,0.00013699,2]
[341873903,1731261154168,-151.0,0.00013699,2]
[341873904,1731261154177,-151.0,0.00013699,2]
[341873905,1731261154187,-151.0,0.00013699,2]
[341873906,1731261154199,-151.0,0.00013699,2]
[341873907,1731261154208,-151.0,0.00013699,2]
[341873908,1731261154218,-151.0,0.00013699,2]
[341873909,1731261154228,-151.0,0.00013699,2]
[341873910,1731261154239,-151.0,0.00013699,2]
[341873911,1731261154249,-151.0,0.00013699,2]
[341873912,1731261154259,-178.511654,0.00013699,2]
[341873913,1731261154268,-415.81141,0.00013699,2]
[341873914,1731261154277,-415.81141,0.00013699,2]
[341873915,1731261154289,-415.81141,0.00013699,2]
[341873916,1731261154298,-415.81141,0.00013699,2]
[341873917,1731261154308,-415.81141,0.00013699,2]
[341873918,1731261154317,-415.81141,0.00013699,2]
[341873919,1731261154327,-415.81141,0.00013699,2]
[341873920,1731261154336,-415.81141,0.00013699,2]
[341873921,1731261154346,-415.81141,0.00013699,2]
[341873922,1731261154355,-415.81141,0.00013699,2]
[341873923,1731261154365,-251.75,0.00013699,2]
[341873924,1731261154380,-6931.49,0.00013699,2]
[341873925,1731261154389,-481.63,0.00013699,2]
[341873926,1731261154398,-20756.67,0.00013699,2]
[341873927,1731261154408,-300.0,0.00013699,2]
[341873928,1731261154419,-200.0,0.00013699,2]
[341873929,1731261154428,-400.0,0.00013699,2]
[341873930,1731261154442,-400.0,0.00013699,2]
[341873931,1731261154452,-400.0,0.00013699,2]
[341873932,1731261154462,-266.621348,0.00013699,2]
[341873933,1731261154472,-250.0,0.000137,2]
[341873934,1731261154481,-7244.23869382,0.000137,2]
[341873935,1731261154489,-7244.23869382,0.000137,2]
[341873936,1731261154499,-7244.23869382,0.000137,2]
[341873937,1731261154508,-7244.23869382,0.000137,2]
[341873938,1731261154517,-7244.23869382,0.000137,2]
[341873939,1731261154527,-7244.23869382,0.000137,2]
[341873940,1731261154536,-7244.23869382,0.000137,2]
[341873941,1731261154545,-7244.23869382,0.000137,2]
[341873942,1731261154555,-7244.23869382,0.000137,2]
[341873943,1731261154564,-7244.23869382,0.000137,2]
[341873944,1731261154574,-7244.23869382,0.000137,2]
[341873945,1731261154583,-7244.23869382,0.000137,2]
[341873946,1731261154593,-7244.23869382,0.000137,2]
[341873947,1731261154603,-7244.23869382,0.000137,2]
[341873948,1731261154612,-7244.23869382,0.000137,2]
[341873949,1731261154625,-7244.23869382,0.000137,2]
[341873950,1731261154635,-7244.23869382,0.000137,2]
[341873951,1731261154645,-7244.23869382,0.000137,2]
[341873952,1731261154655,-7244.23869382,0.000137,2]
[341873953,1731261154664,-7244.23,0.000137,2]
[341873954,1731261154674,-559.10241261,0.000137,2]
[341873955,1731261154684,-559.10241261,0.000137,2]
[341873956,1731261154694,-559.10241261,0.000137,2]
[341873957,1731261154703,-559.10241261,0.000137,2]
[341873958,1731261154713,-559.10241261,0.000137,2]
[341873959,1731261154724,-559.10241261,0.000137,2]
[341873960,1731261154733,-559.10241261,0.000137,2]
[341873961,1731261154743,-559.10241261,0.000137,2]
[341873962,1731261154752,-559.10241261,0.000137,2]
[341873963,1731261154761,-559.10241261,0.000137,2]
[341873964,1731261154771,-559.10241261,0.000137,2]
[341873965,1731261154780,-559.10241261,0.000137,2]
[341873966,1731261154790,-559.10241261,0.000137,2]
[341873967,1731261154799,-559.10241261,0.000137,2]
[341873968,1731261154809,-559.10241261,0.000137,2]
[341873969,1731261154818,-559.10241261,0.000137,2]
[341873970,1731261154828,-559.10241261,0.000137,2]
[341873971,1731261154838,-559.10241261,0.000137,2]
[341873972,1731261154848,-559.10241261,0.000137,2]
[341873973,1731261154858,-559.1,0.000137,2]
[341873974,1731261154867,-707.27054732,0.000137,2]
[341873975,1731261154879,-707.27054732,0.000137,2]
[341873976,1731261154888,-707.27054732,0.000137,2]
[341873977,1731261154898,-707.27054732,0.000137,2]
[341873978,1731261154908,-707.27054732,0.000137,2]
[341873979,1731261154920,-707.27054732,0.000137,2]
[341873980,1731261154930,-707.27054732,0.000137,2]
[341873981,1731261154939,-707.27054732,0.000137,2]
[341873982,1731261154948,-707.27054732,0.000137,2]
[341873983,1731261154958,-707.27054732,0.000137,2]
[341873984,1731261154967,-707.27054732,0.000137,2]
[341873985,1731261154977,-707.27054732,0.000137,2]
[341873986,1731261154986,-707.27054732,0.000137,2]
[341873987,1731261154996,-707.27054732,0.000137,2]
[341873988,1731261155006,-707.27054732,0.000137,2]
[341873989,1731261155016,-707.27054732,0.000137,2]
[341873990,1731261155026,-707.27054732,0.000137,2]
[341873991,1731261155036,-707.27054732,0.000137,2]
[341873992,1731261155046,-707.27054732,0.000137,2]
[341873993,1731261155056,-707.27,0.000137,2]
[341873994,1731261155066,-442.52,0.000137,2]
[341873995,1731261155076,-442.52,0.000137,2]
[341873996,1731261155086,-442.52,0.000137,2]
[341873997,1731261155096,-442.52,0.000137,2]
[341873998,1731261155106,-442.52,0.000137,2]
[341873999,1731261155116,-166.91191,0.0001381,2]
[341874000,1731261155130,-166.91191,0.0001381,2]
[341874001,1731261155144,-187.54447,0.0001381,2]
[341874002,1731261155153,-150.0,0.00013812,2]
[341874003,1731261155163,-400.0,0.00013899,2]
[341874004,1731261155172,-400.0,0.00013899,2]
[341874005,1731261155182,-219.95,0.00013937,2]
[341874006,1731261155193,-400.0,0.00013979,2]
[341874007,1731261155202,-400.0,0.00013979,2]
[341874008,1731261155213,-155442.74194322,0.0001398,2]
[341874009,1731261155223,-152.22805,0.0001398,2]
[341874010,1731261155233,-152.228051,0.0001398,2]
[341874011,1731261155244,-400.0,0.00013998,2]
[341874012,1731261155254,-344.3894727,0.00013998,2]
[341874013,1731261155264,-400.0,0.00013999,2]
[341874014,1731261155276,-400.0,0.00013999,2]
[341874015,1731261155285,-4091.0,0.00013999,2]
[341874016,1731261155295,-5662.0,0.00014,2]
[341874017,1731261155306,-1000.0,0.00014,2]
[341874018,1731261155316,-587.0,0.00014,2]
[341874019,1731261155325,-166.91191,0.00014156,2]
[341874020,1731261155335,-1000.0,0.00014168,2]
[341874021,1731261155346,-250.02,0.00014175,2]
[341874022,1731261155356,-200.0,0.00014198,2]
[341874023,1731261155366,-150.0,0.000142,2]
[341874024,1731261155382,-150.0,0.000142,3]
[341874025,1731261155392,-224.454243,0.00014201,2]
[341874026,1731261155402,-173.889803,0.00014201,2]
[341874027,1731261155411,-589.26,0.00014215,2]
[341874028,1731261155421,-400.0,0.00014246,2]
[341874029,1731261155431,-13641.57,0.00014247,2]
[341874030,1731261155441,-231.3399257,0.00014319,2]
[341874031,1731261155451,-200.0,0.00014378,2]
[341874032,1731261155460,-224.454243,0.00014378,2]
[341874033,1731261155470,-400.0,0.0001439,2]
[341874034,1731261155480,-8500.0,0.00014391,2]
[341874035,1731261155490,-200.0,0.00014397,2]
[341874036,1731261155499,-8500.0,0.000144,2]
[341874037,1731261155509,-219.95,0.0001443,2]
[341874038,1731261155518,-200.0,0.00014496,2]
[341874039,1731261155527,-200.0,0.00014496,2]
[341874040,1731261155537,-200.0,0.00014497,2]
[341874041,1731261155547,-200.0,0.00014497,2]
[341874042,1731261155556,-331.45676536,0.00014497,2]
[341874043,1731261155566,-166.91191,0.00014501,2]
[341874044,1731261155576,-166.91191,0.00014501,2]
[341874045,1731261155586,-12263.51,0.00014504,2]
[341874046,1731261155596,-9999.99,0.00014504,2]
[341874047,1731261155606,-953.71,0.0001452,2]
[341874048,1731261155615,-224.454243,0.00014556,2]
[341874049,1731261155630,-255.0,0.00014664,2]
[341874050,1731261155639,-211.0,0.0001469,2]
[341874051,1731261155649,-10700.0,0.000147,2]
[341874052,1731261155659,-150.0,0.00014727,2]
[341874053,1731261155668,-150.0,0.00014729,2]
[341874054,1731261155678,-150.0,0.00014732,2]
[341874055,1731261155687,-150.0,0.00014733,2]
[341874056,1731261155697,-150.0,0.00014733,2]
[341874057,1731261155706,-150.0,0.00014733,2]
[341874058,1731261155715,-224.454243,0.00014733,2]
[341874059,1731261155725,-150.0,0.00014734,2]
[341874060,1731261155735,-150.0,0.00014736,2]
[341874061,1731261155744,-150.0,0.00014737,2]
[341874062,1731261155753,-150.0,0.00014742,2]
[341874063,1731261155763,-150.0,0.00014745,2]
[341874064,1731261155772,-150.0,0.00014747,2]
[341874065,1731261155782,-150.0,0.00014747,2]
[341874066,1731261155791,-150.0,0.00014751,2]
[341874067,1731261155801,-150.0,0.00014755,2]
[341874068,1731261155811,-150.0,0.00014763,2]
[341874069,1731261155820,-150.0,0.00014763,2]
[341874070,1731261155829,-150.0,0.00014765,2]
[341874071,1731261155839,-150.0,0.00014768,2]
[341874072,1731261155848,-150.0,0.00014771,2]
[341874073,1731261155858,-150.0,0.00014771,2]
[341874074,1731261155867,-150.0,0.00014775,2]
[341874075,1731261155880,-150.0,0.00014776,2]
[341874076,1731261155890,-150.0,0.00014778,2]
[341874077,1731261155899,-150.0,0.00014779,2]
[341874078,1731261155909,-150.0,0.0001478,2]
[341874079,1731261155918,-150.0,0.00014781,2]
[341874080,1731261155929,-150.0,0.00014783,2]
[341874081,1731261155939,-150.0,0.00014785,2]
[341874082,1731261155948,-150.0,0.00014786,2]
[341874083,1731261155957,-150.0,0.00014786,2]
[341874084,1731261155967,-150.0,0.00014792,2]
[341874085,1731261155976,-500.0,0.00014794,2]
[341874086,1731261155986,-500.0,0.00014794,2]
[341874087,1731261155995,-500.0,0.00014794,2]
[341874088,1731261156005,-500.0,0.00014794,2]
[341874089,1731261156015,-500.0,0.00014794,2]
[341874090,1731261156025,-500.0,0.00014794,2]
[341874091,1731261156034,-500.0,0.00014794,2]
[341874092,1731261156044,-500.0,0.00014794,2]
[341874093,1731261156054,-304.68047039,0.00014794,2]
[341874094,1731261156064,-150.0,0.00014796,2]
[341874095,1731261156075,-150.0,0.00014799,2]
[341874096,1731261156086,-150.0,0.000148,2]
[341874097,1731261156099,-150.0,0.00014801,2]
[341874098,1731261156108,-150.0,0.00014806,2]
[341874099,1731261156118,-150.0,0.0001481,2]
[341874100,1731261156130,-150.0,0.00014812,2]
[341874101,1731261156140,-150.0,0.00014818,2]
[341874102,1731261156149,-150.0,0.00014819,2]
[341874103,1731261156159,-150.0,0.0001482,2]
[341874104,1731261156170,-150.0,0.00014823,2]
[341874105,1731261156180,-500.0,0.00014823,2]
[341874106,1731261156190,-150.0,0.00014823,2]
[341874107,1731261156200,-150.0,0.00014823,2]
[341874108,1731261156210,-150.0,0.00014823,2]
[341874109,1731261156220,-243.20672167,0.00014823,2]
[341874110,1731261156229,-640.0,0.00014823,2]
[341874111,1731261156241,-150.0,0.00014823,2]
[341874112,1731261156251,-500.0,0.00014823,2]
[341874113,1731261156260,-161.50699968,0.00014823,2]
[341874114,1731261156273,-754.0,0.00014823,2]
[341874115,1731261156284,-500.0,0.00014823,2]
[341874116,1731261156295,-990.66468805,0.00014823,2]
[341874117,1731261156305,-150.0,0.00014823,2]
[341874118,1731261156315,-500.0,0.00014823,2]
[341874119,1731261156326,-150.0,0.00014823,2]
[341874120,1731261156336,-1243.0,0.00014823,2]
[341874121,1731261156346,-150.0,0.00014826,2]
[341874122,1731261156357,-150.0,0.00014826,2]
[341874123,1731261156367,-150.0,0.00014831,2]
[341874124,1731261156382,-150.0,0.00014831,2]
[341874125,1731261156392,-150.0,0.00014834,2]
[341874126,1731261156402,-150.0,0.00014843,2]
[341874127,1731261156412,-12026.30245795,0.0001485,2]
[341874128,1731261156422,-150.0,0.0001485,2]
[341874129,1731261156433,-150.0,0.00014863,2]
[341874130,1731261156443,-150.0,0.00014864,2]
[341874131,1731261156453,-150.0,0.00014865,2]
[341874132,1731261156463,-150.0,0.00014866,2]
[341874133,1731261156474,-150.0,0.00014868,2]
[341874134,1731261156485,-150.0,0.00014868,2]
[341874135,1731261156494,-150.0,0.00014869,2]
[341874136,1731261156504,-150.0,0.00014871,2]
[341874137,1731261156515,-150.0,0.00014872,2]
[341874138,1731261156525,-150.0,0.00014873,2]
[341874139,1731261156535,-150.0,0.00014875,2]
[341874140,1731261156547,-150.0,0.00014878,2]
[341874141,1731261156557,-150.0,0.00014879,2]
[341874142,1731261156567,-150.0,0.00014882,2]
[341874143,1731261156578,-150.0,0.00014887,2]
[341874144,1731261156588,-150.0,0.00014888,2]
[341874145,1731261156598,-150.0,0.00014888,2]
[341874146,1731261156607,-10866.35804074,0.0001489,2]
[341874147,1731261156618,-10866.35804074,0.0001489,2]
[341874148,1731261156632,-10866.35804074,0.0001489,2]
[341874149,1731261156643,-10866.35804074,0.0001489,2]
[341874150,1731261156653,-10866.35804074,0.0001489,2]
[341874151,1731261156663,-10866.35804074,0.0001489,2]
[341874152,1731261156674,-10866.35804074,0.0001489,2]
[341874153,1731261156684,-10866.35804074,0.0001489,2]
[341874154,1731261156694,-8840.00714986,0.0001489,2]
[341874155,1731261156725,-2026.35089088,0.0001489,2]
[341874156,1731261156736,-10866.35804074,0.0001489,2]
[341874157,1731261156748,-10866.35804074,0.0001489,2]
[341874158,1731261156757,-10866.35804074,0.0001489,2]
[341874159,1731261156767,-5498.14979674,0.0001489,2]
[341874160,1731261156779,-5368.208244,0.0001489,2]
[341874161,1731261156788,-10866.35804074,0.0001489,2]
[341874162,1731261156799,-10866.35804074,0.0001489,2]
[341874163,1731261156809,-10866.35804074,0.0001489,2]
[341874164,1731261156818,-10866.35804074,0.0001489,2]
[341874165,1731261156828,-10866.35804074,0.0001489,2]
[341874166,1731261156838,-10866.35804074,0.0001489,2]
[341874167,1731261156847,-1576.50476926,0.0001489,2]
[341874168,1731261156859,-1608.76017479,0.0001489,2]
[341874169,1731261158064,497.04,0.00038892,30]
[341874170,1731261158158,497.0,0.00038892,30]
[341874171,1731261158302,497.98,0.00038892,30]
[341874172,1731261158414,497.0,0.00038892,30]
[341874173,1731261158485,497.0,0.00038892,30]
[341874174,1731261158608,497.082,0.00038892,30]
[341874175,1731261158710,497.588,0.00038892,30]
[341874176,1731261158855,497.81597,0.00038892,30]
[341874177,1731261158916,497.0,0.00038892,30]
[341874178,1731261159024,497.969271,0.00038892,30]
[341874179,1731261159103,497.2,0.00038892,30]
[341874180,1731261159248,498.0,0.00038892,30]
[341874181,1731261159346,498.0,0.00038892,30]
[341874182,1731261159421,497.623,0.00038892,30]
[341874183,1731261159560,497.8,0.00038892,30]
[341874184,1731261159705,497.121,0.00038892,30]
[341874185,1731261160046,497.493383,0.00038892,30]
[341874186,1731261160129,497.9,0.00038892,30]
[341874187,1731261160317,497.6,0.00038892,30]
[341874188,1731261160496,497.00767,0.00038892,30]
[341874189,1731261160915,300.0,0.00013697,120]
[341874190,1731261160973,300.0,0.00013697,120]
[341874191,1731261161023,300.0,0.00013698,120]
[341874192,1731261161109,300.0,0.00013699,120]
[341874193,1731261162536,497.0,0.00038892,30]
[341874194,1731261162705,519.0,0.00038892,30]
[341874195,1731261162796,497.0,0.00038892,30]
[341874196,1731261171108,487.5,0.00038892,30]
[341874197,1731261263204,807.0,0.00038892,30]
[341874198,1731261264086,3229.0,0.00038892,30]
[341874199,1731261331106,1112.42655044,0.00013698,10]
[341874200,1731261354034,999.99,0.00038892,30]
[341874201,1731261372119,326.181621,0.00038892,30]
[341874206,1731261466026,196.0,0.00038892,30]
[341874207,1731261466494,196.0,0.00038892,30]
[341874208,1731261466908,196.0,0.00038892,30]
[341874209,1731261467327,200.0,0.00038892,30]
[341874210,1731261467903,187.0,0.00038892,30]
[341874212,1731261511527,150.0,0.00038892,30]
[341874213,1731261524657,203.48119153,0.00038892,30]
[341874227,1731261655341,157.987519,0.00038471,40]
[341874228,1731261668931,150.0,0.00038471,30]
[341874229,1731261763870,201.3,0.00038471,30]
[341874230,1731261839984,1439.59,0.00010302,2]
[341874231,1731261857051,3000.0,0.00038471,120]
[341874232,1731261863874,807.0,0.00038471,30]
[341874233,1731261866364,-160.72,0.00012271,2]
[341874234,1731261866387,-397.0,0.00012311,2]
[341874235,1731261866410,-250.0,0.00012355,2]
[341874236,1731261866432,-1000.0,0.00012365,2]
[341874237,1731261866459,-300.0,0.000124,2]
[341874238,1731261866481,-23900.0,0.00012401,2]
[341874239,1731261866505,-988.37,0.00012411,2]
[341874240,1731261866525,-150.0,0.00012437,2]
[341874241,1731261866548,-1439.59,0.00012566,2]
[341874242,1731261866569,-7414.32,0.00012567,2]
[341874245,1731262045147,-249.63,0.00012404,2]
[341874246,1731262045169,-250.0,0.00012415,2]
[341874247,1731262045192,-173.24,0.00012567,2]
[341874248,1731262045214,-2743.9,0.00012567,2]
[341874249,1731262045238,-92.33612898,0.0001268,2]
[341874250,1731262049128,-4880.70975737,0.0001268,2]
[341874251,1731262065865,196.0,0.00038471,30]
[341874252,1731262068122,196.0,0.00038471,30]
[341874261,1731262231517,-521.41,0.0001278,2]
[341874262,1731262231527,-500.0,0.00013,2]
[341874263,1731262231537,-3005.253088,0.00013069,2]
[341874264,1731262231546,-811.53647795,0.00013082,2]
[341874265,1731262231569,-2193.71661004,0.00013082,2]
[341874266,1731262231579,-154.3,0.0001309,2]
[341874267,1731262231588,-154.3,0.00013104,2]
[341874268,1731262231598,-154.3,0.00013117,2]
[341874269,1731262231609,-154.3,0.0001313,2]
[341874270,1731262231618,-154.3,0.00013143,2]
[341874271,1731262231629,-154.3,0.00013156,2]
[341874272,1731262231638,-154.3,0.00013169,2]
[341874273,1731262231647,-3580.45,0.00013169,2]
[341874274,1731262231658,-154.3,0.00013182,2]
[341874275,1731262231667,-6589.3,0.00013195,2]
[341874276,1731262231676,-154.3,0.00013195,2]
[341874277,1731262231685,-154.3,0.00013208,2]
[341874278,1731262231695,-154.3,0.00013221,2]
[341874279,1731262231705,-17904.46930306,0.0001348,2]
[341874280,1731262231714,-300.0,0.000135,4]
[341874281,1731262231727,-150.0,0.00013597,2]
[341874282,1731262231741,-167.19595905,0.00013598,2]
[341874283,1731262231750,-41138.70019266,0.00013598,2]
[341874284,1731262231773,-589.51802975,0.00013598,2]
[341874285,1731262231784,-111781.46467759,0.00013598,2]
[341874286,1731262231794,-1000.0,0.00013598,2]
[341874287,1731262231803,-5000.0,0.00013598,2]
[341874288,1731262231813,-700.0,0.000136,4]
[341874289,1731262231822,-160.88645986,0.00013673,2]
[341874290,1731262231831,-500.0,0.00013673,2]
[341874291,1731262231841,-500.0,0.00013673,2]
[341874292,1731262231850,-501.11690538,0.00013673,2]
[341874293,1731262231859,-150.046,0.00013684,2]
[341874294,1731262231868,-150.0,0.00013684,2]
[341874295,1731262231878,-500.0,0.00013697,2]
[341874297,1731262231887,-500.0,0.00013697,2]
[341874298,1731262231896,-500.0,0.00013697,2]
[341874299,1731262231905,-450.59440572,0.00013697,2]
[341874300,1731262231915,-151.0,0.00013698,2]
[341874301,1731262231925,-151.0,0.00013698,2]
[341874303,1731262231934,-151.0,0.00013698,2]
[341874305,1731262231943,-151.0,0.00013698,2]
[341874307,1731262231952,-183.000999,0.00013698,2]
[341874309,1731262231962,-500.0,0.00013698,2]
[341874311,1731262231974,-500.0,0.00013698,2]
[341874312,1731262231983,-500.0,0.00013698,2]
[341874313,1731262231994,-508.24229365,0.00013698,2]
[341874314,1731262232003,-500.0,0.00013698,2]
[341874315,1731262232012,-500.0,0.00013698,2]
[341874316,1731262232022,-151.0,0.00013698,2]
[341874317,1731262232031,-500.0,0.00013698,2]
[341874318,1731262232040,-500.0,0.00013698,2]
[341874319,1731262232050,-500.0,0.00013698,2]
[341874320,1731262232060,-504.85400826,0.00013698,2]
[341874321,1731262232069,-500.0,0.00013698,2]
[341874322,1731262232078,-500.0,0.00013698,2]
[341874323,1731262232088,-500.0,0.00013698,2]
[341874324,1731262232097,-500.0,0.00013698,2]
[341874326,1731262232106,-500.0,0.00013698,2]
[341874328,1731262232116,-500.0,0.00013698,2]
[341874330,1731262232126,-500.0,0.00013698,2]
[341874332,1731262232134,-500.0,0.00013698,2]
[341874334,1731262232144,-500.0,0.00013698,2]
[341874336,1731262232153,-500.0,0.00013698,2]
[341874338,1731262232162,-500.0,0.00013698,2]
[341874340,1731262232172,-500.0,0.00013698,2]
[341874342,1731262232181,-500.0,0.00013698,2]
[341874344,1731262232190,-500.0,0.00013698,2]
[341874346,1731262232199,-500.0,0.00013698,2]
[341874348,1731262232208,-500.0,0.00013698,2]
[341874350,1731262232218,-500.0,0.00013698,2]